[Event "Fagernes Chess Open 2025"]
[Site "Fagernes"]
[Date "2025.04.14"]
[Round "2.1"]
[White "Stai, Sondre"]
[Black "Aroven, Mikael"]
[Result "1-0"]
[Annotator "NA RC"]
[ECO "C41"]
[WhiteElo "1786"]
[BlackElo "2145"]
[PlyCount "97"]
[EventDate "2025.04.12"]
[EventCountry "NOR"]
[SourceTitle "playchess.com"]
[Source "ChessBase"]
[SourceQuality "1"]
[TimeControl "40/6000+30:2400+30"]

1. d4 {[%emt 0:00:05]} d6 {[%emt 0:01:15]} 2. Nc3 {[%emt 0:00:27]} Nd7 {[%emt 0:02:57]} 3. e4 {[%emt 0:01:40]} e5 {[%emt 0:00:34]} 4. Nf3 {[%emt 0:04:02]} Be7 {[%emt 0:03:33]} 5. Bc4 {[%emt 0:01:12]} h6 {[%emt 0:06:04]} 6. dxe5 {[%emt 0:08:45]} Nc5 {[%emt 0:11:39]} 7. Bf4 {[%emt 0:09:08]} Be6 {[%emt 0:09:51]} 8. Bxe6 {[%emt 0:17:27]} Nxe6 {[%emt 0:00:07]} 9. Bg3 {[%emt 0:00:16]} h5 {[%emt 0:05:57]} 10. exd6 {[%emt 0:03:50]} cxd6 {[%emt 0:00:01]} 11. h3 {[%emt 0:01:17]} h4 {[%emt 0:00:19]} 12. Bh2 {[%emt 0:00:10]} Qb6 {[%emt 0:15:27]} 13. O-O {[%emt 0:01:57]} Rd8 {[%emt 0:03:15]} 14. Nd5 {[%emt 0:08:45]} Qc5 {[%emt 0:00:24]} 15. Qd3 {[%emt 0:05:24]} Rc8 {[%emt 0:10:40]} 16. c3 {[%emt 0:01:07]} Qc4 {[%emt 0:05:39]} 17. Qxc4 {[%emt 0:05:51]} Rxc4 {[%emt 0:00:02]} 18. Rfe1 {[%emt 0:01:32]} Rh6 {[%emt 0:08:18]} 19. Rad1 {[%emt 0:01:52]} Rc6 {[%emt 0:06:47]} 20. e5 {[%emt 0:03:30]} dxe5 {[%emt 0:01:02]} 21. Nxe5 {[%emt 0:00:07]} Ra6 {[%emt 0:02:32]} 22. Ng4 {[%emt 0:15:24]} Rg6 {[%emt 0:01:04]} 23. Rxe6 {[%emt 0:01:06]} Rgxe6 {[%emt 0:00:21]} 24. Nc7+ {[%emt 0:00:11]} Kf8 {[%emt 0:00:15]} 25. Nxa6 {[%emt 0:00:41]} Rxa6 {[%emt 0:00:14]} 26. a3 {[%emt 0:00:30]} Rb6 {[%emt 0:03:06]} 27. b4 {[%emt 0:01:18]} Ra6 {[%emt 0:00:00]} 28. Ra1 {[%emt 0:02:07]} Nf6 {[%emt 0:00:40]} 29. Be5 {[%emt 0:03:01]} Nxg4 {[%emt 0:00:43]} 30. hxg4 {[%emt 0:00:11]} b5 {[%emt 0:00:13]} 31. Bd4 {[%emt 0:01:13]} Ra4 {[%emt 0:00:18]} 32. Kf1 {[%emt 0:02:48]} a5 {[%emt 0:00:14]} 33. Ke2 {[%emt 0:00:13]} axb4 {[%emt 0:01:32]} 34. cxb4 {[%emt 0:00:07]} Ra8 {[%emt 0:00:49]} 35. Bc5 {[%emt 0:01:31]} Bxc5 {[%emt 0:01:48]} 36. bxc5 {[%emt 0:00:05]} Ke7 {[%emt 0:00:03]} 37. Rb1 {[%emt 0:02:23]} Ra5 {[%emt 0:00:16]} 38. Rb3 {[%emt 0:01:13]} Kd7 {[%emt 0:00:43]} 39. f4 {[%emt 0:04:51]} Kc6 {[%emt 0:00:14]} 40. g5 {[%emt 0:02:10]} Ra4 {[%emt 0:00:53]} 41. Kf3 {[%emt 0:40:22]} Rc4 {[%emt 0:46:40]} 42. Kg4 {[%emt 0:00:00]} Rc2 {[%emt 0:00:00]} 43. Re3 {[%emt 0:00:00]} Rxg2+ {[%emt 0:00:00]} 44. Kxh4 {[%emt 0:00:00]} Rd2 {[%emt 0:00:00]} 45. Re7 {[%emt 0:00:00]} Rd7 {[%emt 0:00:00]} 46. Rxd7 {[%emt 0:00:00]} Kxd7 {[%emt 0:00:00]} 47. g6 {[%emt 0:00:00]} f6 {[%emt 0:00:00]} 48. Kg4 {[%emt 0:00:00]} Ke6 {[%emt 0:00:00]} 49. c6 {[%emt 0:00:00]} 1-0

[Event "Fagernes Chess Open 2025"]
[Site "Fagernes"]
[Date "2025.04.14"]
[Round "2.2"]
[White "Engkvist, Tomas"]
[Black "Hansen, Thobias Gotaas"]
[Result "0-1"]
[Annotator "NA RC"]
[ECO "C02"]
[WhiteElo "1969"]
[BlackElo "1805"]
[PlyCount "70"]
[EventDate "2025.04.12"]
[EventCountry "NOR"]
[SourceTitle "playchess.com"]
[Source "ChessBase"]
[SourceQuality "1"]
[TimeControl "40/6000+30:2400+30"]

1. e4 {[%emt 0:00:04]} e6 {[%emt 0:00:09]} 2. d4 {[%emt 0:00:03]} d5 {[%emt 0:00:08]} 3. e5 {[%emt 0:00:03]} c5 {[%emt 0:00:09]} 4. c3 {[%emt 0:00:03]} Nc6 {[%emt 0:00:09]} 5. Nf3 {[%emt 0:00:06]} Bd7 {[%emt 0:00:10]} 6. Be2 {[%emt 0:00:05]} cxd4 {[%emt 0:00:42]} 7. cxd4 {[%emt 0:00:04]} Qb6 {[%emt 0:00:27]} 8. O-O {[%emt 0:00:09]} Nge7 {[%emt 0:01:00]} 9. Na3 {[%emt 0:00:12]} Nf5 {[%emt 0:00:20]} 10. Nc2 {[%emt 0:00:06]} Be7 {[%emt 0:00:18]} 11. Rb1 {[%emt 0:02:17]} a5 {[%emt 0:02:42]} 12. g3 {[%emt 0:02:14]} Rc8 {[%emt 0:01:04]} 13. Kg2 {[%emt 0:00:24]} Nb4 {[%emt 0:13:42]} 14. Nxb4 {[%emt 0:04:17]} axb4 {[%emt 0:01:17]} 15. g4 {[%emt 0:19:21]} Nh4+ {[%emt 0:10:59]} 16. Nxh4 {[%emt 0:00:06]} Bxh4 {[%emt 0:00:16]} 17. Qd3 {[%emt 0:01:59]} Ba4 {[%emt 0:09:04]} 18. b3 {[%emt 0:06:16]} Rc3 {[%emt 0:05:05]} 19. Qd2 {[%emt 0:03:01]} Bb5 {[%emt 0:05:30]} 20. Bb2 {[%emt 0:01:21]} Bxe2 {[%emt 0:02:31]} 21. Qxe2 {[%emt 0:00:05]} Rc6 {[%emt 0:11:07]} 22. Rfc1 {[%emt 0:17:13]} Bg5 {[%emt 0:02:22]} 23. Rxc6 {[%emt 0:00:05]} Qxc6 {[%emt 0:03:49]} 24. Kg3 {[%emt 0:01:47]} Kd7 {[%emt 0:14:32]} 25. f4 {[%emt 0:09:10]} Be7 {[%emt 0:00:38]} 26. Rc1 {[%emt 0:01:00]} Qa6 {[%emt 0:00:41]} 27. Qc2 {[%emt 0:00:16]} Qc6 {[%emt 0:00:32]} 28. Qb1 {[%emt 0:10:21]} Qa6 {[%emt 0:01:38]} 29. Rc2 {[%emt 0:01:34]} Qd3+ {[%emt 0:07:39]} 30. Kf2 {[%emt 0:00:07]} Bh4+ {[%emt 0:00:55]} 31. Kg2 {[%emt 0:00:01]} Qe4+ {[%emt 0:01:03]} 32. Kh3 {[%emt 0:00:06]} Qf3+ {[%emt 0:06:24]} 33. Kxh4 {[%emt 0:00:07]} h5 {[%emt 0:00:40]} 34. Qg1 {[%emt 0:03:13]} hxg4+ {[%emt 0:01:33]} 35. Kg5 {[%emt 0:00:05]} g3 {[%emt 0:02:29]} 0-1

[Event "Fagernes Chess Open 2025"]
[Site "Fagernes"]
[Date "2025.04.14"]
[Round "2.3"]
[White "Kopperud, Vidar Aleksander"]
[Black "Sivaparan, Isai"]
[Result "1-0"]
[Annotator "NA RC"]
[ECO "E18"]
[WhiteElo "1778"]
[BlackElo "1944"]
[PlyCount "95"]
[EventDate "2025.04.12"]
[EventCountry "NOR"]
[SourceTitle "playchess.com"]
[Source "ChessBase"]
[SourceQuality "1"]
[TimeControl "40/6000+30:2400+30"]

1. d4 {[%emt 0:00:03]} Nf6 {[%emt 0:00:09]} 2. c4 {[%emt 0:00:08]} e6 {[%emt 0:00:07]} 3. Nf3 {[%emt 0:00:08]} b6 {[%emt 0:00:26]} 4. g3 {[%emt 0:00:13]} Bb7 {[%emt 0:00:09]} 5. Bg2 {[%emt 0:00:12]} Be7 {[%emt 0:00:35]} 6. Nc3 {[%emt 0:00:45]} Ne4 {[%emt 0:05:34]} 7. Bd2 {[%emt 0:06:23]} O-O {[%emt 0:03:14]} 8. O-O {[%emt 0:02:09]} Bf6 {[%emt 0:09:27]} 9. Qc2 {[%emt 0:03:14]} Nxd2 {[%emt 0:08:59]} 10. Qxd2 {[%emt 0:01:35]} d6 {[%emt 0:03:05]} 11. e4 {[%emt 0:03:00]} Nd7 {[%emt 0:05:06]} 12. Rfe1 {[%emt 0:11:16]} c5 {[%emt 0:03:21]} 13. d5 {[%emt 0:04:09]} Bxc3 {[%emt 0:02:36]} 14. Qxc3 {[%emt 0:01:58]} e5 {[%emt 0:00:25]} 15. Nh4 {[%emt 0:05:23]} g6 {[%emt 0:02:06]} 16. Bh3 {[%emt 0:05:33]} Nf6 {[%emt 0:04:02]} 17. Qe3 {[%emt 0:04:19]} Bc8 {[%emt 0:09:05]} 18. Bxc8 {[%emt 0:03:25]} Qxc8 {[%emt 0:01:37]} 19. Kg2 {[%emt 0:01:38]} a6 {[%emt 0:01:01]} 20. Qg5 {[%emt 0:10:20]} Ne8 {[%emt 0:03:11]} 21. Qe3 {[%emt 0:11:11]} f5 {[%emt 0:06:43]} 22. exf5 {[%emt 0:02:32]} gxf5 {[%emt 0:00:56]} 23. f4 {[%emt 0:06:44]} e4 {[%emt 0:05:08]} 24. h3 {[%emt 0:03:41]} Qd8 {[%emt 0:01:34]} 25. Qf2 {[%emt 0:02:39]} Qf6 {[%emt 0:03:05]} 26. Rad1 {[%emt 0:01:57]} Kh8 {[%emt 0:01:38]} 27. Kh2 {[%emt 0:01:38]} Rg8 {[%emt 0:01:47]} 28. Re3 {[%emt 0:02:14]} Nc7 {[%emt 0:00:57]} 29. Qd2 {[%emt 0:01:14]} b5 {[%emt 0:02:01]} 30. Qc3 {[%emt 0:04:59]} Qxc3 {[%emt 0:01:03]} 31. Rxc3 {[%emt 0:00:17]} Rgf8 {[%emt 0:00:48]} 32. b3 {[%emt 0:00:35]} Kg7 {[%emt 0:01:51]} 33. Ng2 {[%emt 0:00:47]} a5 {[%emt 0:04:51]} 34. Ne3 {[%emt 0:01:58]} a4 {[%emt 0:01:15]} 35. Rd2 {[%emt 0:02:44]} Kg6 {[%emt 0:02:07]} 36. Rf2 {[%emt 0:01:41]} bxc4 {[%emt 0:02:45]} 37. bxc4 {[%emt 0:00:48]} Na6 {[%emt 0:01:19]} 38. a3 {[%emt 0:00:40]} Rab8 {[%emt 0:02:06]} 39. g4 {[%emt 0:01:18]} fxg4 {[%emt 0:00:38]} 40. hxg4 {[%emt 0:01:22]} Rb6 {[%emt 0:02:19]} 41. Kg3 {[%emt 0:05:12]} Rfb8 {[%emt 0:04:58]} 42. f5+ {[%emt 0:05:05]} Kf6 {[%emt 0:08:24]} 43. Kf4 {[%emt 0:03:27]} Re8 {[%emt 0:03:06]} 44. g5+ {[%emt 0:03:28]} Kg7 {[%emt 0:00:51]} 45. f6+ {[%emt 0:01:21]} Kg8 {[%emt 0:01:04]} 46. Nf5 {[%emt 0:04:07]} Rb3 {[%emt 0:03:18]} 47. Rxb3 {[%emt 0:01:02]} axb3 {[%emt 0:00:06]} 48. f7+ {[%emt 0:00:50]} 1-0

[Event "Fagernes Chess Open 2025"]
[Site "Fagernes"]
[Date "2025.04.14"]
[Round "2.4"]
[White "Abrahamsson, Roaul"]
[Black "Neukamm, Christian"]
[Result "1-0"]
[Annotator "NA RC"]
[ECO "D20"]
[WhiteElo "1920"]
[BlackElo "1776"]
[PlyCount "117"]
[EventDate "2025.04.12"]
[EventCountry "NOR"]
[SourceTitle "playchess.com"]
[Source "ChessBase"]
[SourceQuality "1"]
[TimeControl "40/6000+30:2400+30"]

1. d4 {[%emt 0:00:04]} d5 {[%emt 0:00:27]} 2. c4 {[%emt 0:00:05]} dxc4 {[%emt 0:00:22]} 3. e4 {[%emt 0:00:33]} e5 {[%emt 0:00:46]} 4. Nf3 {[%emt 0:00:06]} Bb4+ {[%emt 0:00:41]} 5. Nc3 {[%emt 0:05:22]} b5 {[%emt 0:04:48]} 6. a4 {[%emt 0:22:02]} exd4 {[%emt 0:09:16]} 7. Qxd4 {[%emt 0:01:48]} Qxd4 {[%emt 0:04:02]} 8. Nxd4 {[%emt 0:00:06]} Nf6 {[%emt 0:00:46]} 9. f3 {[%emt 0:08:10]} bxa4 {[%emt 0:27:46]} 10. Ndb5 {[%emt 0:02:09]} Na6 {[%emt 0:16:41]} 11. Bxc4 {[%emt 0:14:58]} Nd7 {[%emt 0:05:20]} 12. Be3 {[%emt 0:10:19]} Bb7 {[%emt 0:03:56]} 13. Rxa4 {[%emt 0:04:22]} c6 {[%emt 0:14:16]} 14. Nd6+ {[%emt 0:10:30]} Bxd6 {[%emt 0:00:52]} 15. Bxa6 {[%emt 0:00:07]} Bxa6 {[%emt 0:04:27]} 16. Rxa6 {[%emt 0:00:06]} Bc5 {[%emt 0:01:19]} 17. Bxc5 {[%emt 0:03:11]} Nxc5 {[%emt 0:00:01]} 18. Rxc6 {[%emt 0:00:59]} Nd3+ {[%emt 0:00:24]} 19. Ke2 {[%emt 0:02:47]} Kd7 {[%emt 0:00:51]} 20. Ra6 {[%emt 0:04:03]} Nxb2 {[%emt 0:01:06]} 21. Rha1 {[%emt 0:02:59]} Rhc8 {[%emt 0:00:28]} 22. Nd5 {[%emt 0:04:08]} Rc2+ {[%emt 0:03:59]} 23. Ke3 {[%emt 0:01:00]} Rc6 {[%emt 0:00:48]} 24. Rxa7+ {[%emt 0:01:03]} Rxa7 {[%emt 0:00:09]} 25. Rxa7+ {[%emt 0:00:04]} Ke8 {[%emt 0:01:48]} 26. Re7+ {[%emt 0:01:32]} Kf8 {[%emt 0:00:46]} 27. Rb7 {[%emt 0:00:29]} Nc4+ {[%emt 0:00:45]} 28. Kf4 {[%emt 0:03:00]} g5+ {[%emt 0:01:41]} 29. Kg4 {[%emt 0:02:26]} h6 {[%emt 0:00:45]} 30. Rb8+ {[%emt 0:01:33]} Kg7 {[%emt 0:00:19]} 31. Ne7 {[%emt 0:00:38]} Ra6 {[%emt 0:00:55]} 32. Nf5+ {[%emt 0:00:24]} Kg6 {[%emt 0:01:48]} 33. Rg8+ {[%emt 0:01:03]} Kh7 {[%emt 0:00:34]} 34. Rf8 {[%emt 0:01:43]} Kg6 {[%emt 0:00:12]} 35. h4 {[%emt 0:00:29]} Ne5+ {[%emt 0:00:41]} 36. Kh3 {[%emt 0:00:53]} g4+ {[%emt 0:02:15]} 37. fxg4 {[%emt 0:00:23]} Ra3+ {[%emt 0:00:43]} 38. g3 {[%emt 0:01:15]} Nd3 {[%emt 0:00:30]} 39. Rg8+ {[%emt 0:02:07]} Kh7 {[%emt 0:01:11]} 40. Rg7+ {[%emt 0:00:24]} Kh8 {[%emt 0:00:07]} 41. Rxf7 {[%emt 0:07:17]} Nf2+ {[%emt 0:03:24]} 42. Kg2 {[%emt 0:01:01]} Nxg4 {[%emt 0:00:18]} 43. Rf8+ {[%emt 0:05:29]} Kh7 {[%emt 0:00:22]} 44. h5 {[%emt 0:00:31]} Ne3+ {[%emt 0:07:49]} 45. Nxe3 {[%emt 0:01:37]} Rxe3 {[%emt 0:00:06]} 46. Rf4 {[%emt 0:00:10]} Kg7 {[%emt 0:00:41]} 47. Kf2 {[%emt 0:00:23]} Ra3 {[%emt 0:00:16]} 48. Kg2 {[%emt 0:03:19]} Ra5 {[%emt 0:03:08]} 49. Rf5 {[%emt 0:01:20]} Ra4 {[%emt 0:00:20]} 50. Kf3 {[%emt 0:00:15]} Ra1 {[%emt 0:01:07]} 51. Rb5 {[%emt 0:01:57]} Kf6 {[%emt 0:01:51]} 52. Kg4 {[%emt 0:02:47]} Re1 {[%emt 0:01:18]} 53. Rb6+ {[%emt 0:01:17]} Ke5 {[%emt 0:07:16]} 54. Rxh6 {[%emt 0:00:22]} Rxe4+ {[%emt 0:00:14]} 55. Kg5 {[%emt 0:00:29]} Ra4 {[%emt 0:01:36]} 56. Rb6 {[%emt 0:00:17]} Ra8 {[%emt 0:00:35]} 57. h6 {[%emt 0:01:20]} Rg8+ {[%emt 0:01:11]} 58. Rg6 {[%emt 0:00:09]} Rh8 {[%emt 0:00:16]} 59. Rg7 {[%emt 0:00:17]} 1-0

[Event "Fagernes Chess Open 2025"]
[Site "Fagernes"]
[Date "2025.04.14"]
[Round "2.5"]
[White "Rynning, Rune Kleiven"]
[Black "Solbu, August"]
[Result "0-1"]
[Annotator "NA COMBH"]
[ECO "E05"]
[WhiteElo "1776"]
[BlackElo "1887"]
[PlyCount "84"]
[EventDate "2025.04.12"]
[EventCountry "NOR"]
[SourceTitle "playchess.com"]
[Source "ChessBase"]
[SourceQuality "1"]
[TimeControl "40/6000+30:2400+30"]

1. c4 {[%emt 0:00:04]} Nf6 {[%emt 0:00:12]} 2. g3 {[%emt 0:00:11]} e6 {[%emt 0:00:04]} 3. Bg2 {[%emt 0:00:09]} d5 {[%emt 0:00:13]} 4. Nf3 {[%emt 0:00:14]} Be7 {[%emt 0:00:04]} 5. O-O {[%emt 0:00:09]} O-O {[%emt 0:00:04]} 6. d4 {[%emt 0:00:07]} dxc4 {[%emt 0:00:04]} 7. Na3 {[%emt 0:00:13]} Bxa3 {[%emt 0:13:30]} 8. bxa3 {[%emt 0:00:09]} Bd7 {[%emt 0:00:32]} 9. a4 {[%emt 0:00:09]} Bc6 {[%emt 0:01:43]} 10. Ba3 {[%emt 0:00:14]} Re8 {[%emt 0:00:07]} 11. Qc2 {[%emt 0:00:44]} a5 {[%emt 0:03:02]} 12. Rac1 {[%emt 0:10:28]} Nbd7 {[%emt 0:03:42]} 13. Qxc4 {[%emt 0:06:13]} Nb6 {[%emt 0:04:35]} 14. Qc2 {[%emt 0:00:17]} Nfd5 {[%emt 0:05:38]} 15. e4 {[%emt 0:02:58]} Nb4 {[%emt 0:01:46]} 16. Bxb4 {[%emt 0:02:29]} axb4 {[%emt 0:00:54]} 17. Ne5 {[%emt 0:07:05]} Re7 {[%emt 0:20:12]} 18. Nxc6 {[%emt 0:02:54]} bxc6 {[%emt 0:02:20]} 19. Qxc6 {[%emt 0:04:55]} Nxa4 {[%emt 0:05:39]} 20. Rc4 {[%emt 0:04:59]} Nb6 {[%emt 0:07:33]} 21. Rxb4 {[%emt 0:04:42]} Rxa2 {[%emt 0:03:03]} 22. Rc1 {[%emt 0:06:16]} h6 {[%emt 0:03:00]} 23. Qc5 {[%emt 0:10:40]} Rd7 {[%emt 0:03:32]} 24. Rd1 {[%emt 0:08:14]} Qf6 {[%emt 0:07:11]} 25. d5 {[%emt 0:05:19]} Na4 {[%emt 0:05:50]} 26. Qd4 {[%emt 0:12:01]} Qxd4 {[%emt 0:01:12]} 27. Rdxd4 {[%emt 0:02:53]} Nc3 {[%emt 0:03:26]} 28. Rd3 {[%emt 0:07:14]} Ne2+ {[%emt 0:03:08]} 29. Kf1 {[%emt 0:00:32]} exd5 {[%emt 0:00:37]} 30. Rb8+ {[%emt 0:01:51]} Kh7 {[%emt 0:00:07]} 31. Rxd5 {[%emt 0:00:14]} Nc3 {[%emt 0:01:05]} 32. Bh3 {[%emt 0:01:42]} Rxd5 {[%emt 0:01:07]} 33. exd5 {[%emt 0:00:03]} g6 {[%emt 0:03:24]} 34. Re8 {[%emt 0:04:56]} Nxd5 {[%emt 0:00:43]} 35. Re5 {[%emt 0:00:47]} c6 {[%emt 0:03:26]} 36. Bd7 {[%emt 0:01:12]} Nb4 {[%emt 0:00:18]} 37. Re4 {[%emt 0:02:41]} Nd3 {[%emt 0:00:50]} 38. Re2 {[%emt 0:00:18]} Rxe2 {[%emt 0:01:54]} 39. Kxe2 {[%emt 0:00:02]} Ne5 {[%emt 0:00:21]} 40. Be8 {[%emt 0:01:03]} Kg7 {[%emt 0:00:11]} 41. f4 {[%emt 0:42:26]} Kf8 {[%emt 0:40:01]} 42. fxe5 {[%emt 0:00:25]} Kxe8 {[%emt 0:00:01]} 0-1

[Event "Fagernes Chess Open 2025"]
[Site "Fagernes"]
[Date "2025.04.14"]
[Round "2.6"]
[White "Ali, Karim"]
[Black "Vollheim, Daniel O"]
[Result "1-0"]
[Annotator "NA COMBH"]
[ECO "C00"]
[WhiteElo "1876"]
[BlackElo "1764"]
[PlyCount "45"]
[EventDate "2025.04.12"]
[EventCountry "NOR"]
[SourceTitle "playchess.com"]
[Source "ChessBase"]
[SourceQuality "1"]
[TimeControl "40/6000+30:2400+30"]

1. e4 {[%emt 0:02:00]} e6 {[%emt 0:00:10]} 2. d3 {[%emt 0:00:09]} d5 {[%emt 0:00:10]} 3. Nd2 {[%emt 0:00:04]} dxe4 {[%emt 0:00:41]} 4. dxe4 {[%emt 0:00:10]} Bc5 {[%emt 0:00:15]} 5. Ngf3 {[%emt 0:00:22]} Nf6 {[%emt 0:00:14]} 6. Bc4 {[%emt 0:03:19]} O-O {[%emt 0:02:13]} 7. O-O {[%emt 0:00:17]} a6 {[%emt 0:00:16]} 8. Qe2 {[%emt 0:01:54]} b5 {[%emt 0:00:47]} 9. Bd3 {[%emt 0:01:18]} Nbd7 {[%emt 0:07:04]} 10. e5 {[%emt 0:10:31]} Nd5 {[%emt 0:02:27]} 11. Ne4 {[%emt 0:02:41]} f5 {[%emt 0:04:05]} 12. exf6 {[%emt 0:02:06]} N5xf6 {[%emt 0:01:00]} 13. Neg5 {[%emt 0:05:54]} Nb6 {[%emt 0:06:23]} 14. Nxh7 {[%emt 0:13:18]} Nxh7 {[%emt 0:27:45]} 15. Bxh7+ {[%emt 0:00:14]} Kh8 {[%emt 0:00:10]} 16. Ng5 {[%emt 0:05:55]} Qe8 {[%emt 0:11:13]} 17. Be4 {[%emt 0:18:14]} Rb8 {[%emt 0:09:28]} 18. Qg4 {[%emt 0:05:22]} Rf6 {[%emt 0:00:00]} 19. Nf3 {[%emt 0:02:39]} e5 {[%emt 0:03:43]} 20. Qh4+ {[%emt 0:00:52]} Kg8 {[%emt 0:01:13]} 21. Qh7+ {[%emt 0:05:36]} Kf8 {[%emt 0:01:04]} 22. Bg5 {[%emt 0:01:35]} Rxf3 {[%emt 0:01:25]} 23. Qh8+ {[%emt 0:04:20]} 1-0

[Event "Fagernes Chess Open 2025"]
[Site "Fagernes"]
[Date "2025.04.14"]
[Round "2.7"]
[White "Kuzmenko, Mykhailo"]
[Black "Arulmaran, Abishan"]
[Result "0-1"]
[Annotator "NA COMBH"]
[ECO "A45"]
[WhiteElo "1747"]
[BlackElo "1858"]
[PlyCount "132"]
[EventDate "2025.04.12"]
[EventCountry "NOR"]
[SourceTitle "playchess.com"]
[Source "ChessBase"]
[SourceQuality "1"]
[TimeControl "40/6000+30:2400+30"]

1. d4 {[%emt 0:00:06]} Nf6 {[%emt 0:00:25]} 2. Bf4 {[%emt 0:00:09]} c5 {[%emt 0:01:08]} 3. e3 {[%emt 0:00:06]} Qb6 {[%emt 0:00:14]} 4. Nc3 {[%emt 0:00:38]} d6 {[%emt 0:00:28]} 5. dxc5 {[%emt 0:12:45]} Qxc5 {[%emt 0:03:45]} 6. h3 {[%emt 0:03:27]} g6 {[%emt 0:00:39]} 7. Nf3 {[%emt 0:00:56]} Bg7 {[%emt 0:00:34]} 8. Be2 {[%emt 0:01:01]} Nh5 {[%emt 0:08:44]} 9. Bh2 {[%emt 0:07:00]} O-O {[%emt 0:02:26]} 10. O-O {[%emt 0:00:30]} Nc6 {[%emt 0:01:52]} 11. Qd2 {[%emt 0:07:56]} a6 {[%emt 0:01:45]} 12. Na4 {[%emt 0:06:14]} Qa7 {[%emt 0:02:43]} 13. c4 {[%emt 0:00:58]} Nf6 {[%emt 0:02:11]} 14. Nc3 {[%emt 0:00:54]} Be6 {[%emt 0:05:07]} 15. Rfd1 {[%emt 0:08:41]} Rac8 {[%emt 0:08:25]} 16. Rac1 {[%emt 0:01:20]} h6 {[%emt 0:03:14]} 17. e4 {[%emt 0:02:57]} Nd7 {[%emt 0:01:53]} 18. Bf4 {[%emt 0:05:04]} Kh7 {[%emt 0:04:53]} 19. Be3 {[%emt 0:00:41]} Qb8 {[%emt 0:01:16]} 20. Nd4 {[%emt 0:03:19]} Nxd4 {[%emt 0:06:28]} 21. Bxd4 {[%emt 0:00:12]} Bxc4 {[%emt 0:01:35]} 22. Bxg7 {[%emt 0:02:55]} Kxg7 {[%emt 0:05:44]} 23. Qd4+ {[%emt 0:06:28]} e5 {[%emt 0:05:13]} 24. Qxd6 {[%emt 0:00:52]} Bxe2 {[%emt 0:02:19]} 25. Qxb8 {[%emt 0:00:40]} Nxb8 {[%emt 0:01:29]} 26. Nxe2 {[%emt 0:00:11]} Rxc1 {[%emt 0:00:42]} 27. Rxc1 {[%emt 0:02:25]} Rd8 {[%emt 0:02:36]} 28. Rc2 {[%emt 0:06:10]} Nc6 {[%emt 0:01:19]} 29. a3 {[%emt 0:01:13]} Rd1+ {[%emt 0:00:50]} 30. Kh2 {[%emt 0:00:09]} Nd4 {[%emt 0:00:53]} 31. Nc3 {[%emt 0:08:02]} Rd3 {[%emt 0:04:09]} 32. Rc1 {[%emt 0:00:03]} Rd2 {[%emt 0:00:16]} 33. Nd1 {[%emt 0:00:26]} Ne2 {[%emt 0:04:53]} 34. Rb1 {[%emt 0:00:19]} f5 {[%emt 0:00:44]} 35. g3 {[%emt 0:10:02]} fxe4 {[%emt 0:01:49]} 36. Kg2 {[%emt 0:01:56]} Nd4 {[%emt 0:01:47]} 37. Ne3 {[%emt 0:00:21]} Nf5 {[%emt 0:03:43]} 38. Nxf5+ {[%emt 0:05:10]} gxf5 {[%emt 0:00:38]} 39. Kf1 {[%emt 0:00:26]} f4 {[%emt 0:01:00]} 40. gxf4 {[%emt 0:00:51]} exf4 {[%emt 0:00:23]} 41. Re1 {[%emt 0:41:02]} Rd4 {[%emt 0:40:34]} 42. Ke2 {[%emt 0:01:27]} Kf6 {[%emt 0:01:41]} 43. Rc1 {[%emt 0:00:26]} Rd3 {[%emt 0:06:19]} 44. Rc4 {[%emt 0:02:50]} Ke5 {[%emt 0:07:11]} 45. Rb4 {[%emt 0:00:00]} b5 {[%emt 0:00:00]} 46. h4 {[%emt 0:00:00]} h5 {[%emt 0:00:00]} 47. a4 {[%emt 0:00:00]} Rd4 {[%emt 0:00:00]} 48. Rb3 {[%emt 0:00:00]} Rxa4 {[%emt 0:00:00]} 49. Rc3 {[%emt 0:00:00]} Kf5 {[%emt 0:00:00]} 50. f3 {[%emt 0:00:00]} Rc4 {[%emt 0:00:00]} 51. fxe4+ {[%emt 0:00:00]} Kxe4 {[%emt 0:00:00]} 52. Ra3 {[%emt 0:00:00]} f3+ {[%emt 0:00:00]} 53. Ke1 {[%emt 0:00:00]} Rc1+ {[%emt 0:00:00]} 54. Kf2 {[%emt 0:00:00]} Rc2+ {[%emt 0:00:00]} 55. Ke1 {[%emt 0:00:00]} Rxb2 {[%emt 0:00:00]} 56. Rxa6 {[%emt 0:00:00]} Kf5 {[%emt 0:00:00]} 57. Rd6 {[%emt 0:00:00]} b4 {[%emt 0:00:00]} 58. Rd8 {[%emt 0:00:00]} b3 {[%emt 0:00:00]} 59. Rd4 {[%emt 0:00:00]} Re2+ {[%emt 0:00:00]} 60. Kf1 {[%emt 0:00:00]} b2 {[%emt 0:00:00]} 61. Rb4 {[%emt 0:00:00]} Rh2 {[%emt 0:00:00]} 62. Kg1 {[%emt 0:00:00]} f2+ {[%emt 0:00:00]} 63. Kxh2 {[%emt 0:00:00]} f1=Q {[%emt 0:00:00]} 64. Rxb2 {[%emt 0:00:00]} Qf4+ {[%emt 0:00:00]} 65. Kg2 {[%emt 0:00:00]} Qe4+ {[%emt 0:00:00]} 66. Kf1 {[%emt 0:00:00]} Qh1+ {[%emt 0:00:00]} 0-1

[Event "Fagernes Chess Open 2025"]
[Site "Fagernes"]
[Date "2025.04.14"]
[Round "2.8"]
[White "Bollestad, Leiv Ove"]
[Black "Andersen, Guttorm"]
[Result "0-1"]
[Annotator "NA COMBH"]
[ECO "C01"]
[WhiteElo "1585"]
[BlackElo "1842"]
[PlyCount "42"]
[EventDate "2025.04.12"]
[EventCountry "NOR"]
[SourceTitle "playchess.com"]
[Source "ChessBase"]
[SourceQuality "1"]
[TimeControl "40/6000+30:2400+30"]

1. e4 {[%emt 0:00:15]} e6 {[%emt 0:01:58]} 2. Nf3 {[%emt 0:00:36]} d5 {[%emt 0:00:07]} 3. exd5 {[%emt 0:00:13]} exd5 {[%emt 0:00:50]} 4. d4 {[%emt 0:00:25]} Nf6 {[%emt 0:02:34]} 5. Bb5+ {[%emt 0:04:00]} c6 {[%emt 0:00:55]} 6. Bd3 {[%emt 0:00:07]} Bd6 {[%emt 0:05:40]} 7. O-O {[%emt 0:01:55]} O-O {[%emt 0:00:37]} 8. Ne5 {[%emt 0:04:46]} Bxe5 {[%emt 0:03:10]} 9. dxe5 {[%emt 0:00:12]} Ng4 {[%emt 0:01:11]} 10. Bf4 {[%emt 0:03:35]} Re8 {[%emt 0:06:21]} 11. h3 {[%emt 0:04:31]} Nxe5 {[%emt 0:01:50]} 12. Bxh7+ {[%emt 0:01:48]} Kxh7 {[%emt 0:13:07]} 13. Qh5+ {[%emt 0:00:12]} Kg8 {[%emt 0:00:05]} 14. Bxe5 {[%emt 0:00:17]} Nd7 {[%emt 0:05:21]} 15. Bc3 {[%emt 0:07:30]} Nf6 {[%emt 0:01:41]} 16. Bxf6 {[%emt 0:06:38]} Qxf6 {[%emt 0:00:10]} 17. Nc3 {[%emt 0:00:38]} Re5 {[%emt 0:00:45]} 18. Qd1 {[%emt 0:09:22]} Qg6 {[%emt 0:04:08]} 19. Qd3 {[%emt 0:02:33]} Bf5 {[%emt 0:01:20]} 20. Qf3 {[%emt 0:06:30]} Rae8 {[%emt 0:01:01]} 21. Nd1 {[%emt 0:03:01]} Be4 {[%emt 0:00:36]} 0-1